{"text_format":"1","workbook":"xlsx","n_sheets":3,"sheets":["Hoja1","Hoja2","Hoja3"],"not_rendered":{"charts":0,"images":1,"macros":1,"external_links":0,"defined_names":1,"comments":0,"pivot_tables":0},"unopened":[],"bounds":{"document_bytes":16777216,"sheet_cells":100000,"rows_first":2000,"rows_last":500,"rows_between":2000,"halvings":0,"cell_chars":16384,"cell_head_chars":4096},"cells_cut":0,"cells_raw":0,"read":"whole","date_system":"1900"}

{"sheet":"Hoja1","index":0,"n_rows":33,"n_cols":10,"rows_kept":33,"cut":false,"hidden":false,"merged":[[1,0,1,9],[3,0,3,9]]}
[]
["AURKEZTUTAKO FAKTURAK ETA ORDAINAGIRIAK"]
[]
["RELACIÓN DE FACTURAS Y JUSTIFICANTES DE PAGO"]
[]
[]
["Aurkezten duen zuriketa: / Justificación que se presenta:"]
[]
["Ordena Zenbakia","Faktura zenbakia","Faktura data","Hornitzailea","Kontzeptua","Oinarri ezargarria","BEZ","Faktura osoa","Ordainketa agiria","Ordainketa data"]
["Nº de orden","Nº de factura","Fecha factura","Proveedor","Concepto","Base Imponible","IVA","Total factura","Justificante  pago","Fecha pago"]
[]
[null,null,"Fecha factura","Proveedor","Concepto","Importe",null,null,"Justificante  pago","Fecha pago"]
[null,null,null,null,null,null,null,{"$f":"+F13+G13","v":0}]
[null,null,null,null,null,null,null,0]
[null,null,null,null,null,null,null,0]
[null,null,null,null,null,null,null,0]
[null,null,null,null,null,null,null,0]
[null,null,null,null,null,null,null,0]
[null,null,null,null,null,null,null,0]
[null,null,null,null,null,null,null,0]
[null,null,null,null,null,null,null,0]
[null,null,null,null,null,null,null,0]
[null,null,null,null,null,null,null,0]
[null,null,null,null,null,null,null,0]
[null,null,null,null,null,null,null,0]
[null,null,null,null,null,null,null,0]
[null,null,null,null,null,null,null,0]
[null,null,null,null,null,null,null,0]
[null,null,null,null,null,null,null,0]
[null,null,null,null,null,null,null,0]
[null,null,null,null,null,null,null,0]
[null,null,null,null,null,null,null,0]
[null,null,null,null,null,{"$f":"+SUM(F12:F32)","v":0},{"$f":"+SUM(G12:G32)","v":0},{"$f":"+SUM(H12:H32)","v":0}]

{"sheet":"Hoja2","index":1,"n_rows":0,"n_cols":0,"rows_kept":0,"cut":false,"hidden":false,"merged":[]}

{"sheet":"Hoja3","index":2,"n_rows":0,"n_cols":0,"rows_kept":0,"cut":false,"hidden":false,"merged":[]}